Cogmind - Beta 17 @@@ ROGUE MODE // 2026.08.06 @ 15:12:01 Player: Floof Enjoyer Result: Self-destructed Performance ------------- Evolutions (6) 3000 Regions Visited (5) 1000 Robots Destroyed (27) 135 Value Destroyed (998) 998 Prototype IDs (0) 0 Alien Tech Used (0) 0 Bonus (0) 0 TOTAL SCORE: 5133 Bonus ------- None Cogmind --------- Core Integrity 938/1150 Matter 152/300 Energy 312/375 System Corruption 0% Temperature Cool (-126) Movement Hovering (116) Ox1 Location -4/Factory Parts ------- > --- POWER (3) -------- Light Fission Core Neutrino Core > --- PROPULSION (6) --- Linear Gravjet Improved Linear Gravjet > --- UTILITY (7) ------ Advanced Cryofiber Web Improved Coolant Injector Improved Coolant Injector Advanced Weight Redist. System Quantum Capacitor Thermal Shield > --- WEAPON (3) ------- (None) > --- INVENTORY (5) ---- Component Analysis Suite Peak State ------------ > --- POWER ------------ Light Fission Core Neutrino Core Neutrino Core > --- PROPULSION ------- Flexi-carbon Leg Flexi-carbon Leg Linear Gravjet Improved Linear Gravjet Improved Linear Gravjet > --- UTILITY ---------- Advanced Heat Sink Improved Coolant Injector Advanced Weight Redist. System Advanced Recoil Stabilizer Quantum Capacitor Thermal Shield > --- WEAPON ----------- Improved Arc Projector Heavy Laser Mass Driver > --- INVENTORY -------- Light Fission Core Improved Coolant Injector Component Analysis Suite Tesla Rifle [Rating: 104] Favorites ----------- Power Micro Nuclear Core Engine Ion Engine Power Core Micro Nuclear Core Propulsion Flexi-carbon Leg Leg Flexi-carbon Leg Wheel Compact Wheel Hover Unit Improved Linear Gravjet Utility Small Storage Unit Device Improved Coolant Injector Storage Small Storage Unit Protection Scrap Shield Weapon Heavy Laser Energy Gun Heavy Laser Energy Cannon Disruptor Cannon Ballistic Gun Autogun Ballistic Cannon Mass Driver Launcher Grenade Launcher Build | -11 -10 -10 -7 -5 -4 ------- Run | Yrd Mat Sub Scr Fac Fac Slots Evolved 12 | . . . . 10 2 Power 2 | . . . . 2 . Propulsion 4 | . . . . 4 . Utility 5 | . . . . 3 2 Weapon 1 | . . . . 1 . Parts Attached 61 | 8 . . . 44 9 Power 14 | 1 . . . 12 1 Engine 3 | 1 . . . 2 . Core 11 | . . . . 10 1 Reactor . | . . . . . . Propulsion 13 | 2 . . . 8 3 Treads . | . . . . . . Leg 4 | . . . . 4 . Wheel 6 | 2 . . . 4 . Hover 3 | . . . . . 3 Flight . | . . . . . . Utility 19 | 2 . . . 13 4 Device 16 | 1 . . . 12 3 Storage 1 | 1 . . . . . Processor . | . . . . . . Hackware . | . . . . . . Protection 2 | . . . . 1 1 Artifact . | . . . . . . Weapon 15 | 3 . . . 11 1 Energy Gun 7 | 2 . . . 4 1 Energy Cannon 1 | . . . . 1 . Ballistic Gun 5 | 1 . . . 4 . Ballistic Cannon 1 | . . . . 1 . Launcher 1 | . . . . 1 . Special Weapon . | . . . . . . Impact Weapon . | . . . . . . Slashing Weapon . | . . . . . . Piercing Weapon . | . . . . . . Special Melee Weapon . | . . . . . . Unidentified Prototypes . | . . . . . . Parts Lost 35 | . . . . 26 9 Power 9 | . . . . 7 2 Propulsion 7 | . . . . 6 1 Utility 7 | . . . . 5 2 Weapon 12 | . . . . 8 4 Highest Loss Streak 9 | . . . . 9 9 To Critical Strikes . | . . . . . . Average Backups 4 | 1 5 6 7 3 3 Power . | . 1 1 1 . . Propulsion . | . 1 2 2 . . Utility 1 | . . 1 2 1 1 Weapon 1 | . 1 2 2 1 . Tool/Special . | . . . . . . Unused Backups 6 | . 1 . . 4 1 Power 1 | . 1 . . . . Propulsion 2 | . . . . 2 . Utility 3 | . . . . 2 1 Weapon . | . . . . . . Tool/Special . | . . . . . . Average Slot Usage (%) 82 | . 100 100 100 75 73 Engine 5 | . 14 14 14 1 . Core 8 | . . . . 11 14 Leg 9 | . . . . 13 7 Wheel 10 | . 28 28 28 4 . Device 20 | . 14 14 14 22 30 Storage 5 | . 14 14 14 2 . Energy Gun 8 | . 14 14 14 5 9 Ballistic Gun 8 | . 14 14 14 6 . Ballistic Cannon 1 | . . . . 1 4 Peak Build Rating 104 | 9 9 10 10 71 104 Average Rating 39 | 5 9 9 10 51 82 On Entrance 18 | . 9 9 10 10 70 Avg Prop Armor Cover (%) 8 | . . . 9 4 9 Naked Turns . | . . . . . . Heaviest Build 65 | 13 13 13 13 57 65 Greatest Support 75 | 32 32 32 3 75 49 Greatest Overweight (x) 5 | . . . 4 5 3 Average Overweight (x) . | . . . 4 . . Largest Inventory Capacity 8 | 8 8 8 8 8 5 Average Capacity 6 | 7 8 8 8 6 5 Most Carried 8 | 4 6 8 8 8 5 Average Carried 4 | 1 5 6 8 3 3 Final Capacity 8 | 8 8 8 8 5 5 Final Carried 8 | 3 6 8 8 5 1 Class Distribution -------------------- 42% | Scavenger-Tank 35% | Mutant 13% | Scavenger-Gunner 7% | Scavenger-Mutant Dominant Class ---------------- Mutant | -10/Materials Mutant | -10/Subcaves Mutant | -7/Scraptown Scavenger-Tank | -5/Factory Scavenger-Gunner | -4/Factory Resources | -11 -10 -10 -7 -5 -4 ----------- Run | Yrd Mat Sub Scr Fac Fac Matter Collected 1080 | 257 37 . . 786 . Remotely 80 | . . . . 80 . Salvage Created 1131 | 137 84 . . 910 . Parts 51 | 10 4 . . 37 . Haulers Intercepted . | . . . . . . Recyclers Shooed 5 | 1 . . . 3 1 Parts Field Recycled . | . . . . . . Retrieved Matter . | . . . . . . Parts Self-Destructed . | . . . . . . Prevented . | . . . . . . Parts Restored . | . . . . . . Kills | -11 -10 -10 -7 -5 -4 ------- Run | Yrd Mat Sub Scr Fac Fac Combat Hostiles Destroyed 18 | . 2 . . 16 . Guns 11 | . 2 . . 9 . Cannons 3 | . . . . 3 . AOE 3 | . . . . 3 . Classes Destroyed 8 | 2 1 . . 5 . Worker 3 | . . . . 3 . Tunneler 3 | 3 . . . . . Recycler 3 | 1 . . . 2 . Swarmer 4 | . . . . 4 . Grunt 6 | . 2 . . 4 . Sentry 1 | . . . . 1 . Hunter 3 | . . . . 3 . Programmer 4 | . . . . 4 . Best Kill Streak 4 | 4 2 . . 4 . Combat Bots Only 4 | . 2 . . 4 . Max Kills in Single Turn 3 | 1 1 . . 3 . Gunslinging . | . . . . . . Exploded 3 | . . . . 3 . Melee . | . . . . . . Uniques/NPCs Destroyed . | . . . . . . Combat | -11 -10 -10 -7 -5 -4 -------- Run | Yrd Mat Sub Scr Fac Fac Hostile Shots Fired 300 | . 10 . . 212 78 Missed 95 | . 1 . . 68 26 Hits 205 | . 9 . . 144 52 Projectile 205 | . 9 . . 144 52 Critical Strikes 5 | . . . . 4 1 Damage Taken 3787 | . 97 . . 2730 960 Core 775 | . 54 . . 509 212 Absorbed by Shields . | . . . . . . Ignored by Resistances 57 | . . . . 57 . Core Remaining (%) 75 | 100 . . 78 49 . Volleys Fired 96 | 9 6 . . 76 5 Largest 3 | 2 2 . . 3 3 Hottest 181 | 80 60 . . 181 181 Shots Fired 213 | 18 12 . . 172 11 Gun 181 | 18 12 . . 143 8 Cannon 29 | . . . . 26 3 Launcher 3 | . . . . 3 . Special . | . . . . . . Kinetic 134 | 8 6 . . 117 3 Thermal 50 | 9 6 . . 30 5 Explosive 3 | . . . . 3 . Electromagnetic 26 | 1 . . . 22 3 Robot Hit Streak 10 | 6 10 . . 10 2 Robot Miss Streak 5 | 3 1 . . 4 5 Penetration Max 1 | . . . . 1 . Secondary Targets 2 | . . . . 2 . Max Gunslinging Chain 1 | . . . . 1 . Capacitor 1 | . . . . . 1 Shots Hit Robots 121 | 10 10 . . 98 3 Core Hits 69 | 6 4 . . 56 3 Critical Kills . | . . . . . . Critical Parts Destroyed . | . . . . . . Critical Strikes 2 | . . . . 2 . Blast 2 | . . . . 2 . Melee Attacks . | . . . . . . Impact . | . . . . . . Slashing . | . . . . . . Piercing . | . . . . . . Sneak Attacks . | . . . . . . Combat Hostiles . | . . . . . . Follow-up Attacks . | . . . . . . Damage Inflicted 2813 | 98 97 . . 2457 161 Guns 1507 | 98 97 . . 1189 123 Cannons 856 | . . . . 818 38 Explosions 450 | . . . . 450 . Melee . | . . . . . . Ramming . | . . . . . . Kinetic 1615 | 31 41 . . 1505 38 Thermal 534 | 67 56 . . 338 73 Explosive 450 | . . . . 450 . Electromagnetic 214 | . . . . 164 50 Impact . | . . . . . . Slashing . | . . . . . . Piercing . | . . . . . . Highest Corruption 4 | . . . . 4 . Average Corruption 3 | . . . . 3 . Corruption Purged . | . . . . . . Corruption Blocked . | . . . . . . Effects 8 | . . . . 8 . Message Errors 1 | . . . . 1 . Matter Fused 3 | . . . . 3 . Heat Flow Errors 1 | . . . . 1 . Energy Discharges 1 | . . . . 1 . Data Loss (minor) 1 | . . . . 1 . Weapon Failures 1 | . . . . 1 . Overload Shots . | . . . . . . Overflow Damage 20 | . . . . 20 . Projectiles 20 | . . . . 20 . Explosions . | . . . . . . Melee . | . . . . . . Knockbacks 5 | . . . . 5 . Impact . | . . . . . . Kinetic 5 | . . . . 5 . Secondary . | . . . . . . Self-Inflicted Damage 122 | . . . . 122 . Shots 2 | . . . . 2 . Rammed . | . . . . . . Targets Rammed . | . . . . . . Kicked . | . . . . . . Crushed . | . . . . . . Highest Temperature 199 | 40 82 . . 199 194 Average Temperature 78 | 16 34 . . 88 97 Received Heat Transfer 198 | . 54 . . 144 . Siege Activations . | . . . . . . Martial Activations . | . . . . . . Shielding Activations . | . . . . . . Robots Disrupted 2 | . . . . 2 . Combat Hostiles 2 | . . . . 2 . Robots Corrupted . | . . . . . . Combat Hostiles . | . . . . . . Parts Fried . | . . . . . . Impact Corruptions . | . . . . . . Robots Melted 1 | . . . . 1 . Combat Hostiles 1 | . . . . 1 . Parts Melted 2 | . . . . 2 . Heat Transferred 1078 | 150 125 . . 655 148 Parts Sabotaged . | . . . . . . Parts Stolen . | . . . . . . Parts Stripped . | . . . . . . Power Chain Reactions . | . . . . . . Alert | -11 -10 -10 -7 -5 -4 ------- Run | Yrd Mat Sub Scr Fac Fac Maximum Alert Level . | . . . . . . Low Security (%) 100 | 100 100 . . 100 100 Level 1 . | . . . . . . Level 2 . | . . . . . . Level 3 . | . . . . . . Level 4 . | . . . . . . Level 5 . | . . . . . . High Security . | . . . . . . Max Security . | . . . . . . Peak Influence 184 | 10 40 . . 184 4 Initial 4 | . . . . . 4 Average 36 | 1 7 . . 45 . Influence Increases 637 | 20 40 . . 571 6 Destroy 0b10 Robot/C 360 | . 40 . . 320 . Destroy 0b10 Robot/NC 45 | 20 . . . 25 . Destroy Leader 70 | . . . . 70 . Disable Machine 45 | . . . . 45 . Destroy Structure 102 | . . . . 96 6 Lose Combat Pursuer 15 | . . . . 15 . Influence Decreases 637 | 20 40 . . 560 17 Entered New Map 7 | . . . . . 7 Time Decay 458 | 20 40 . . 390 8 Lost Part 172 | . . . . 170 2 Squads Dispatched 4 | . . . . 3 1 Investigation . | . . . . . . Extermination 2 | . . . . 2 . Reinforcement 2 | . . . . 1 1 Assault . | . . . . . . Garrison . | . . . . . . Intercept . | . . . . . . Searches Triggered . | . . . . . . Construction Impeded 1 | . . . . . 1 Haulers Reinforced . | . . . . . . Active Scanning Responses . | . . . . . . Cargo Convoy Interrupts . | . . . . . . Stealth | -11 -10 -10 -7 -5 -4 --------- Run | Yrd Mat Sub Scr Fac Fac Distress Signals 3 | . . . . 2 1 Communications Jammed . | . . . . . . Distress Signals . | . . . . . . Times Spotted 35 | . 3 . . 26 6 Peak Tracking Total 6 | . 2 . . 6 5 Tactical Retreats 1 | . . . . 1 . Traps | -11 -10 -10 -7 -5 -4 ------- Run | Yrd Mat Sub Scr Fac Fac Traps Triggered 1 | . . . . 1 . Indirectly . | . . . . . . Trap Hack Attempts . | . . . . . . Triggered . | . . . . . . Disarmed . | . . . . . . Reprogrammed . | . . . . . . Reused . | . . . . . . Traps Extracted . | . . . . . . Installed . | . . . . . . Triggered . | . . . . . . Machines | -11 -10 -10 -7 -5 -4 ---------- Run | Yrd Mat Sub Scr Fac Fac Machines Disabled 3 | . . . . 3 . Max in Single Turn 2 | . . . . 2 . Machines Repaired . | . . . . . . Machines Dismantled . | . . . . . . Machines Sabotaged . | . . . . . . Overloaded Fab Kills . | . . . . . . Hacking | -11 -10 -10 -7 -5 -4 --------- Run | Yrd Mat Sub Scr Fac Fac Machines Accessed 2 | . 1 . . 1 . Terminals 1 | . 1 . . . . Fabricators . | . . . . . . Repair Stations . | . . . . . . Recycling Units . | . . . . . . Scanalyzers 1 | . . . . 1 . Garrison Access . | . . . . . . Total Hacks 7 | . 1 . . 6 . Successful 6 | . 1 . . 5 . Failed . | . . . . . . Catastrophic . | . . . . . . Database Lockouts 1 | . . . . 1 . Manual . | . . . . . . Terminals 1 | . 1 . . . . Fabricators . | . . . . . . Repair Stations . | . . . . . . Recycling Units . | . . . . . . Scanalyzers 6 | . . . . 6 . Garrison Access . | . . . . . . Terminal Hacks 1 | . 1 . . . . Record 1 | . 1 . . . . Fabricator Hacks . | . . . . . . Repair Station Hacks . | . . . . . . Recycling Unit Hacks . | . . . . . . Scanalyzer 5 | . . . . 5 . Retrieve Study 5 | . . . . 5 . Garrison Access Hacks . | . . . . . . Unauthorized Hacks . | . . . . . . Terminals . | . . . . . . Fabricators . | . . . . . . Repair Stations . | . . . . . . Recycling Units . | . . . . . . Scanalyzers . | . . . . . . Garrison Access . | . . . . . . Data Cores Recovered . | . . . . . . Used . | . . . . . . Hacking Detections . | . . . . . . Full Trace Events . | . . . . . . Feedback Events . | . . . . . . Feedback Blocked . | . . . . . . Robot Schematics Acquired . | . . . . . . Robots Built . | . . . . . . Authchips . | . . . . . . Time . | . . . . . . Total Robot Build Rating . | . . . . . . Part Schematics Acquired . | . . . . . . Parts Built . | . . . . . . Authchips . | . . . . . . Time . | . . . . . . Total Part Build Rating . | . . . . . . Part Studies Acquired 5 | . . . . 5 . Parts Repaired . | . . . . . . Time . | . . . . . . Parts Recycled . | . . . . . . Recycled Matter . | . . . . . . Retrieved Matter . | . . . . . . Retrieved Components . | . . . . . . Parts Scanalyzed . | . . . . . . Part Schematics Acquired . | . . . . . . Parts Damaged . | . . . . . . Bothacking | -11 -10 -10 -7 -5 -4 ------------ Run | Yrd Mat Sub Scr Fac Fac Used RIF Installer . | . . . . . . Robots Hacked . | . . . . . . Non-combat . | . . . . . . Combat . | . . . . . . Robot Hacks Applied . | . . . . . . Relay Couplers Released . | . . . . . . Fabnet Peak Effective % . | . . . . . . Robots Rewired . | . . . . . . Allies Hacked . | . . . . . . Hacks Repelled . | . . . . . . Allies | -11 -10 -10 -7 -5 -4 -------- Run | Yrd Mat Sub Scr Fac Fac Total Allies . | . . . . . . Largest Group . | . . . . . . Highest-Rated Group . | . . . . . . Highest-Rated Ally . | . . . . . . Total Orders . | . . . . . . Ally Attacks . | . . . . . . Total Damage . | . . . . . . Kills . | . . . . . . Allies Corrupted . | . . . . . . Allies Melted . | . . . . . . Intel | -11 -10 -10 -7 -5 -4 ------- Run | Yrd Mat Sub Scr Fac Fac Active Infowar (turns) 1481 | 5 191 90 400 795 . Sensors 585 | . . . . 585 . Terrain 896 | 5 191 90 400 210 . Robot Analysis Total . | . . . . . . Derelict Logs Recovered . | . . . . . . Drone Launches . | . . . . . . Drone Recoveries . | . . . . . . Exploration | -11 -10 -10 -7 -5 -4 ------------- Run | Yrd Mat Sub Scr Fac Fac Turns Passed 2587 | 122 191 90 400 1641 143 Spaces Moved 1586 | 79 81 90 161 1103 72 Core 163 | 1 . . 161 1 . Treads . | . . . . . . Legs 817 | . . . . 786 31 Wheels 565 | 78 81 90 . 316 . Hover 41 | . . . . . 41 Flight . | . . . . . . Fastest Speed 36 | 50 100 100 250 70 36 Average Speed 130 | 99 100 100 250 119 148 Slowest Speed 300 | 100 100 100 250 300 300 Overloaded Moves . | . . . . . . Propulsion Burnouts . | . . . . . . Robots Hopped . | . . . . . . Potential Cave-ins . | . . . . . . Cave-ins Triggered . | . . . . . . Exploration Rate (%) 12 | 4 14 10 25 23 1 Regions Visited 5 Branch Regions 2 Pre-discovered Areas . | . . . . . . Known Exits Taken . | . . . . . . Unknown Exits Taken 5 | 1 1 1 1 1 . Scrap Searched . | . . . . . . Spaces Dug . | . . . . . . Terrain Destroyed 51 | . . . . 48 3 Melee . | . . . . . . Projectile 9 | . . . . 6 3 AOE 42 | . . . . 42 . Terrain Rammed . | . . . . . . Walls Destroyed . | . . . . . . Machines Disabled . | . . . . . . Actions | -11 -10 -10 -7 -5 -4 --------- Run | Yrd Mat Sub Scr Fac Fac Total 1935 | 105 180 90 160 1298 102 Wait 103 | . 89 . . 14 . Move 1581 | 78 80 89 160 1102 72 Hop . | . . . . . . Pick Up 63 | 10 4 1 . 40 8 Fast Attach 5 | . . . . 5 . Attach 51 | 7 . . . 34 10 Detach 3 | . . . . 3 . Swap 11 | 1 . . . 9 1 Drop 22 | . 1 . . 15 6 Fire 96 | 9 6 . . 76 5 Melee . | . . . . . . Ram . | . . . . . . Kick . | . . . . . . Crush . | . . . . . . Escape Stasis . | . . . . . . Rewire . | . . . . . . Trap . | . . . . . . Miscellaneous . | . . . . . . Route ------- -11/Scrapyard -10/Materials -10/Subcaves -7/Scraptown -5/Factory -4/Factory History --------- Turn | Location | Event 19 | -11/Scrapyard | Discovered new exit (range 16) 123 | -11/Scrapyard | Entered Materials 309 | -10/Materials | Build established: Mutant 309 | -10/Materials | Discovered new exit (range 2) 314 | -10/Materials | Entered Subcaves 315 | -10/Subcaves | Approached by a straggling Scientist 368 | -10/Subcaves | Shifting Twisted Machinery released Scrap Shield 404 | -10/Subcaves | Entered Scraptown 437 | -7/Scraptown | Heard Great Nut preacher, LISTEN AND RECITE! 787 | -7/Scraptown | Discovered new exit (range 5) 804 | -7/Scraptown | Entered Factory 804 | -5/Factory | Evolved 10 slots: Power x2, Propulsion x4, Utility x3, Weapon x1 966 | -5/Factory | Central database locked down 1067 | -5/Factory | Lost 9 parts (2p3n2u2w) 1186 | -5/Factory | Lost 4 parts (2p1n1w) 1233 | -5/Factory | Lost 4 parts (1p1u2w) 1685 | -5/Factory | Build established: Scavenger-Tank 2016 | -5/Factory | Lost 3 parts (1p1n1w) 2059 | -5/Factory | Core integrity fell below 50% 2114 | -5/Factory | Lost 5 parts (1p2u2w) 2431 | -5/Factory | Discovered new exit (range 5) 2445 | -5/Factory | Entered another Factory area 2445 | -4/Factory | Evolved 2 slots: Utility x2 2477 | -4/Factory | Found Quantum Capacitor 2588 | -4/Factory | Self-destructed Last Messages --------------- Slug penetrates Wall. Adv. Heat Sink destroyed. Penetrated by Slug. Adv. Recoil Stabilizer destroyed. Slug penetrates Wall. Penetrated by Slug. Slug penetrates Wall. Tesla Rifle destroyed. Penetrated by Slug. Slug penetrates Wall. Penetrated by Slug. Imp. Linear Gravjet destroyed. Neutrino Core destroyed. Penetrated by Slug. Hvy. Laser destroyed. Slug penetrates Wall. Lgt. Fission Core destroyed. Slug penetrates Wall. Acquired Adv. Cryofiber Web. Slug penetrates Wall. Map ----- +----------------------------------------------------+ | | | | | | | | | | | | | | | | | ?????????????????????????????????????????????????? | | ?????????????????????????????????????????????????? | | ?????????????????????????????????????????????????? | | ?????????????????????????????????????????????????? | | ?????????????????????????????????????????????????? | | ?????????????????????????????????????????????????? | | ?????????????????????????????????????????????????? | | ?????????????????????????????????????????????????? | | ???????????????????????????????????????????????""? | | ??????????????????????????????????????????????"""? | | ????????????????????????###########?????????? ? | | ????????????????????????# #?????????# ??? | | ????????????????????????# #########+"##### | | ????????????????????????# # | | ????????????????????????# """"""" # | | ????????????????????????# """"""" # | | ????????????????????????# """"""" + % | | ????????????????????????#@""""""" # | | ????????????????????????# h # "######### | | ????????????????????????########### # == | | ????????????????????????# # # | | ????????????????????????# = # # ! | | ????????????????????????# # # | | ????????????????????????# + + | | ????????????????????????# # # | | ????????????????????????# ! # # | | ????????????????????????+ !! # # | | ???????????????????????## ################ | | ????????????????????????###########??????????????? | | ?????????????????????????????????????????????????? | | ?????????????????????????????????????????????????? | | ?????????????????????????????????????????????????? | | ?????????????????????????????????????????????????? | | ?????????????????????????????????????????????????? | | ?????????????????????????????????????????????????? | | ?????????????????????????????????????????????????? | | ?????????????????????????????????????????????????? | | ?????????????????????????????????????????????????? | | ?????????????????????????????????????????????????? | | ?????????????????????????????????????????????????? | | ?????????????????????????????????????????????????? | | ?????????????????????????????????????????????????? | +----------------------------------------------------+ Best States ------------- Heat Dissipation 62 Coolant Potential 160 Energy Generation 46 Energy Capacity 590 Matter Stores 300 Matter Capacity 300 Sight Range 16 Robot Scan Range 16 Terrain Scan Range 16 Terrain Scan Density 10 Additional Mass Support 9 Base Temperature (-) 200 Armor Coverage 800 Resistance: TH 20 Evasion (%) 55 Recoil Reduction 6 Matter Filtering 30 Item Schematics ----------------- None Robot Schematics ------------------ None Fabricated ------------ Nothing Repaired ---------- Nothing Studied --------- Ion Engine | -5/Factory | Hacked Wheel | -5/Factory | Hacked Com. Wheel | -5/Factory | Hacked EM Pulse Gun | -5/Factory | Hacked Lgt. Assault Rifle | -5/Factory | Hacked Alien Tech Used ----------------- None Achievements -------------- Respectable Loadout Challenges ------------ None Game ------ Seed TransdimensionalLayeredGun Manual? 0 Play Time 00:23:13 Cumulative 12.8 hours Start 2026.08.06 @ 14:50:41 End 2026.08.06 @ 15:12:01 Sessions 1 Manual Loads 0 Difficulty Rogue Special Mode None Game No. 44 Rogue 44 Adventurer 0 Explorer 0 Win Type - Total 0 Types 0/0/0/0/0/0/0/0/0/0 Lore% 14 Gallery% 20 Achievement% 15 Wizard Run 0 Options --------- Layout 1 ASCII 0 Keyboard 0 Movement Mouse Keybinds 0 Fullscreen 1 Font 24/Smallcaps Map View 50x35 Zoom Use 0% Tactical HUD 0 Map Filters NONE Filters NONE Steam 1 RUN: fff17cbe-132f-4865-b61b-e5cc0db664a4